bitfinex/quotes_BTCUSD_20250226
["timestamp","ask_amount","ask_price","bid_price","bid_amount"]
[1740537282784,0.99726257,88913.0,88912.0,0.005849]
[1740537282975,0.99726257,88913.0,88912.0,0.010849]
[1740537303537,0.66796257,88913.0,88912.0,0.010849]
[1740537305830,0.66796257,88913.0,88912.0,0.005849]
[1740537306167,0.66896257,88913.0,88912.0,0.005849]
[1740537306574,0.66896257,88913.0,88912.0,0.000849]
[1740537306976,0.67096257,88913.0,88912.0,0.000849]
[1740537307399,0.66896257,88913.0,88912.0,0.000849]
[1740537307593,0.56896257,88913.0,88912.0,0.000849]
[1740537307749,0.56896257,88913.0,88912.0,0.001849]
[1740537307957,0.66896257,88913.0,88912.0,0.001849]
[1740537308586,0.66796257,88913.0,88912.0,0.001849]
[1740537308793,0.66796257,88913.0,88912.0,0.003849]
[1740537309558,0.56796257,88913.0,88912.0,0.003849]
[1740537310545,0.56796257,88913.0,88912.0,0.085049]
[1740537310847,0.66796257,88913.0,88912.0,0.002849]
[1740537311057,0.66796257,88913.0,88912.0,0.007849]
[1740537311495,0.66796257,88913.0,88912.0,0.002849]
[1740537311888,0.66896257,88913.0,88912.0,0.007849]
[1740537312186,0.66896257,88913.0,88912.0,0.005849]
[1740537312823,0.66896257,88913.0,88912.0,0.010849]
[1740537313356,0.66896257,88913.0,88912.0,0.005849]
[1740537313696,0.66796257,88913.0,88912.0,0.000849]
[1740537314869,0.67971161,88913.0,88912.0,0.000849]
[1740537319395,0.48045304,88913.0,88912.0,0.000849]
[1740537319807,0.58045304,88913.0,88912.0,0.000849]
[1740537319951,0.48045304,88913.0,88912.0,0.000849]
[1740537320326,0.58045304,88913.0,88912.0,0.000849]
[1740537320685,0.58045304,88913.0,88912.0,0.003849]
[1740537321251,0.80701161,88913.0,88912.0,0.003849]
[1740537321448,0.56797757,88905.0,88904.0,0.00014237]
[1740537321764,0.66797757,88905.0,88904.0,3.7e-07]
[1740537322837,0.66797757,88905.0,88904.0,0.00100037]
[1740537323050,0.66797757,88905.0,88904.0,3.7e-07]
[1740537323422,0.4727504,88905.0,88904.0,3.7e-07]
[1740537323623,0.6414694,88905.0,88904.0,3.7e-07]
[1740537324316,0.6414694,88905.0,88904.0,0.00100037]
[1740537325267,0.6414694,88905.0,88904.0,0.001]
[1740537325445,0.6424694,88905.0,88904.0,0.001]
[1740537325876,0.168753,88887.0,88881.0,0.0008496]
[1740537326221,0.168753,88887.0,88886.0,0.00127777]
[1740537327055,0.168753,88887.0,88886.0,0.00427777]
[1740537327262,0.169753,88887.0,88886.0,0.00427777]
[1740537328072,0.170753,88887.0,88886.0,0.01027777]
[1740537331251,0.20126202,88887.0,88886.0,0.01027777]
[1740537334210,0.30052059,88887.0,88886.0,0.01027777]
[1740537336286,0.20126202,88887.0,88886.0,0.01027777]
[1740537336591,0.03250902,88887.0,88886.0,0.01027777]
[1740537336806,0.03250902,88887.0,88886.0,0.14137777]
[1740537337089,0.03250902,88887.0,88886.0,0.18328348]
[1740537338078,0.30052059,88887.0,88886.0,0.18328348]
[1740537338283,0.30052059,88887.0,88886.0,0.1487256]
[1740537339139,0.30052059,88887.0,88886.0,0.14137777]
[1740537339866,0.30052059,88887.0,88886.0,0.09167777]
[1740537340402,0.30052059,88887.0,88886.0,0.01027777]
[1740537347395,0.77872059,88887.0,88886.0,7.7e-07]
[1740537347597,0.83546963,88887.0,88886.0,7.7e-07]
[1740537348301,0.468763,88882.0,88881.0,0.0008496]
[1740537348478,0.66802157,88882.0,88881.0,0.0008496]
[1740537349945,0.67102157,88882.0,88881.0,0.0008496]
[1740537351197,0.67602157,88882.0,88881.0,0.0008496]
[1740537353547,0.68777061,88882.0,88881.0,0.0008496]
[1740537353859,0.68777061,88882.0,88852.0,0.03683167]
[1740537353860,0.49925857,88871.0,88852.0,0.03683167]
[1740537354010,0.80356157,88871.0,88852.0,0.03683167]
[1740537354217,0.81810242,88871.0,88852.0,0.03683167]
[1740537354419,0.82660317,88871.0,88852.0,0.03683167]
[1740537354622,0.87220521,88871.0,88870.0,2.9e-07]
[1740537354805,0.66807657,88853.0,88852.0,5.1e-07]
[1740537355008,0.67982561,88853.0,88852.0,5.1e-07]
[1740537356037,0.67982561,88853.0,88852.0,0.0001022]
[1740537356836,0.74366646,88853.0,88852.0,0.0001022]
[1740537358307,0.74466646,88853.0,88852.0,0.0001022]
[1740537358727,0.66809357,88844.0,88843.0,0.0380334]
[1740537358927,0.66809357,88844.0,88843.0,0.03812696]
[1740537360363,0.49925857,88844.0,88843.0,0.03812696]
[1740537360514,0.66809357,88844.0,88843.0,0.03812696]
[1740537360719,0.66909357,88844.0,88843.0,0.03812696]
[1740537361333,0.66809357,88844.0,88843.0,0.03812696]
[1740537362455,0.68184261,88844.0,88843.0,0.03812696]
[1740537362928,0.82208346,88844.0,88843.0,0.03812696]
[1740537363575,0.82308346,88844.0,88843.0,0.03812696]
[1740537363777,0.74608346,88844.0,88843.0,0.03812696]
[1740537363985,0.74708346,88844.0,88843.0,0.03812696]
[1740537364161,0.64508346,88844.0,88843.0,0.03812696]
[1740537364373,0.57984261,88844.0,88843.0,0.03812696]
[1740537364521,0.68184261,88844.0,88843.0,0.03812696]
[1740537364732,0.41374904,88844.0,88843.0,0.03812696]
[1740537364951,0.41374904,88844.0,88843.0,0.05064773]
[1740537364952,0.31174904,88844.0,88843.0,0.05064773]
[1740537365488,0.41100761,88844.0,88843.0,0.05064773]
[1740537365631,0.41100761,88844.0,88843.0,0.05149653]
[1740537365632,0.01274904,88844.0,88843.0,0.05149653]
[1740537365865,0.001,88844.0,88843.0,0.03897576]
[1740537366051,0.001,88844.0,88843.0,0.05149658]
[1740537366252,0.002,88844.0,88843.0,0.05149658]
[1740537366506,0.10125857,88844.0,88843.0,0.05149658]
[1740537366715,0.002,88844.0,88843.0,0.16263804]
[1740537366923,0.002,88844.0,88843.0,0.3328405]
[1740537367113,0.002,88844.0,88843.0,0.33147504]
[1740537367323,0.002,88844.0,88843.0,0.37757504]
[1740537367558,0.0004244,88852.0,88843.0,0.20873804]
[1740537367713,0.0004244,88852.0,88851.0,0.247921]
[1740537367909,0.0004244,88852.0,88851.0,0.246921]
[1740537368482,0.0004244,88852.0,88851.0,0.24773744]
[1740537368718,0.0004244,88852.0,88851.0,0.24673744]
[1740537368940,0.0004244,88852.0,88851.0,0.24573744]
[1740537369154,0.0004244,88852.0,88851.0,0.3489445]
[1740537369683,0.0014244,88852.0,88851.0,0.3489445]
[1740537370844,0.3,88871.0,88852.0,0.224093]
[1740537371043,0.3,88869.0,88855.0,0.168814]
[1740537371250,0.3,88869.0,88867.0,0.168789]
[1740537371458,0.01174904,88871.0,88868.0,0.08]
[1740537371588,0.01174904,88882.0,88869.0,0.23786]
[1740537371792,0.01174904,88882.0,88870.0,0.168785]
[1740537372002,0.03093332,88887.0,88872.0,0.16878]
[1740537372212,0.03093332,88887.0,88873.0,0.02637648]
[1740537372411,0.168757,88886.0,88874.0,0.00136396]
[1740537372625,0.03093332,88887.0,88874.0,0.00136396]
[1740537372839,0.03093332,88887.0,88881.0,0.0757]
[1740537373019,0.03093332,88887.0,88883.0,0.168761]
[1740537373217,0.03093332,88887.0,88882.0,0.01295585]
[1740537373421,0.03136177,88887.0,88884.0,0.01158677]
[1740537373629,0.03136177,88887.0,88883.0,0.01158802]
[1740537373945,0.001,88886.0,88884.0,0.0115829]
[1740537374151,0.001,88886.0,88884.0,0.02222055]
[1740537374369,0.03636177,88887.0,88885.0,0.01158028]
[1740537374577,0.03136177,88887.0,88884.0,0.02222055]
[1740537374808,0.03236177,88887.0,88885.0,0.01158028]
[1740537375152,0.03236177,88887.0,88884.0,0.02222055]
[1740537375714,0.03236177,88887.0,88885.0,0.01158028]
[1740537375920,0.03236177,88887.0,88884.0,0.02222055]
[1740537375921,0.03136177,88887.0,88884.0,0.004]
[1740537376209,0.168757,88885.0,88884.0,0.009]
[1740537376427,0.168757,88885.0,88884.0,0.004]
[1740537376778,0.168757,88885.0,88884.0,0.009]
[1740537376977,0.00196869,88886.0,88873.0,0.0771]
[1740537377182,0.168769,88879.0,88874.0,0.01241761]
[1740537377389,0.03136177,88887.0,88874.0,0.03078066]
[1740537377752,0.03136177,88887.0,88879.0,0.168767]
[1740537377895,0.03136177,88887.0,88880.0,0.01239997]
[1740537378246,0.03136177,88887.0,88884.0,0.002]
[1740537378662,0.03136177,88887.0,88880.0,0.01239997]
[1740537378902,0.03136177,88887.0,88881.0,0.0406191]
[1740537379082,0.225007,88886.0,88884.0,0.003]
[1740537379324,0.03136177,88887.0,88880.0,0.01239997]
[1740537379522,0.00085275,88887.0,88886.0,0.168755]
[1740537379643,0.00057167,88887.0,88886.0,0.0641389]
[1740537379846,0.00057167,88887.0,88886.0,0.07515716]
[1740537380410,0.00057167,88887.0,88886.0,0.24527562]
[1740537380604,0.00057167,88887.0,88886.0,0.24391216]
[1740537381021,0.00057167,88887.0,88886.0,0.24691216]
[1740537381374,0.00057167,88887.0,88886.0,0.24991216]
[1740537381572,0.00057167,88887.0,88886.0,0.08115716]
[1740537381777,0.00057167,88887.0,88886.0,0.24827568]
[1740537381987,0.00057167,88887.0,88886.0,0.24691216]
[1740537382187,0.00057167,88887.0,88886.0,0.25091216]
[1740537382387,0.00057167,88887.0,88886.0,0.08215716]
[1740537382813,0.00057167,88887.0,88886.0,0.07915716]
[1740537383192,0.00057167,88887.0,88886.0,0.08415716]
[1740537385571,0.00057167,88887.0,88886.0,0.25291216]
[1740537385803,0.00057167,88887.0,88886.0,0.08415716]
[1740537386000,0.00057167,88887.0,88886.0,0.25291216]
[1740537387166,0.00057167,88887.0,88886.0,0.08415716]
[1740537388406,0.00057167,88887.0,88886.0,0.25291216]
[1740537389564,0.168727,88901.0,88889.0,0.168748]
[1740537389760,0.02686665,88901.0,88890.0,0.1695511]
[1740537389961,0.3,88901.0,88890.0,0.1695511]
[1740537390165,0.3,88901.0,88891.0,0.168745]
[1740537390358,0.3,88901.0,88892.0,0.16954647]
[1740537390780,0.303,88901.0,88892.0,0.16954647]
[1740537390983,0.32978296,88901.0,88892.0,0.16954647]
[1740537391220,0.02678296,88901.0,88893.0,0.04796246]
[1740537391584,0.001,88901.0,88894.0,0.01235769]
[1740537391878,0.3,88900.0,88893.0,0.04796246]
[1740537392642,0.524972,88900.0,88893.0,0.04796246]
[1740537392862,0.168739,88895.0,88887.0,0.00136339]
[1740537393005,0.16874,88894.0,88886.0,0.04569356]
[1740537393538,0.3,88897.0,88893.0,0.002]
[1740537393766,0.16874,88894.0,88893.0,0.002]
[1740537394162,0.168753,88887.0,88886.0,9.356e-05]
[1740537394399,0.224986,88895.0,88886.0,0.01758829]
[1740537394547,0.224986,88895.0,88886.0,0.01178292]
[1740537394753,0.224986,88895.0,88893.0,0.003]
[1740537394954,0.168741,88894.0,88893.0,0.003]
[1740537395120,0.3,88899.0,88886.0,0.01178292]
[1740537395325,0.168752,88888.0,88886.0,0.01678292]
[1740537395652,0.168749,88890.0,88887.0,0.00935829]
[1740537395813,0.168751,88888.0,88887.0,0.00935829]
[1740537396038,0.16874,88894.0,88893.0,0.001]
[1740537396462,0.168753,88887.0,88886.0,0.00509356]
[1740537396904,0.168753,88887.0,88886.0,0.01247477]
[1740537397110,0.25189604,88901.0,88886.0,0.00982641]
[1740537397354,0.168745,88892.0,88886.0,0.00982641]
[1740537397557,0.168745,88892.0,88886.0,0.00902104]
[1740537397729,0.168749,88889.0,88887.0,0.01237827]
[1740537398494,0.168747,88891.0,88887.0,0.01237827]
[1740537398714,0.224991,88893.0,88888.0,0.00981993]
[1740537399124,0.168748,88890.0,88888.0,0.00981993]
[1740537399849,0.168749,88890.0,88888.0,0.00981993]
[1740537400090,0.449948,88899.0,88888.0,0.00981993]
[1740537400231,0.00196866,88898.0,88886.0,0.00409356]
[1740537400429,0.168753,88887.0,88886.0,0.00409356]
[1740537400629,0.168753,88887.0,88886.0,9.356e-05]
[1740537401651,0.168753,88887.0,88886.0,0.00509356]
[1740537402646,0.001,88889.0,88886.0,0.01328292]
[1740537402879,0.169749,88889.0,88888.0,0.0008482]
[1740537403277,0.001,88889.0,88888.0,0.0008482]
[1740537403715,0.001,88889.0,88888.0,0.00165293]
[1740537403891,0.168748,88890.0,88888.0,0.0008482]
[1740537404121,0.168749,88889.0,88888.0,0.03071761]
[1740537404318,0.168749,88889.0,88888.0,0.0048482]
[1740537405198,0.168749,88889.0,88888.0,0.0078482]
[1740537405996,0.16874,88894.0,88888.0,0.0078482]
[1740537406192,0.168748,88890.0,88888.0,0.02022356]
[1740537406396,0.168746,88891.0,88888.0,0.0078482]
[1740537406598,0.168747,88891.0,88888.0,0.0078482]
[1740537406882,0.168748,88890.0,88888.0,0.0078482]
[1740537407259,0.02841559,88901.0,88888.0,0.0078482]
[1740537407523,0.168742,88893.0,88888.0,0.0038482]
[1740537407942,0.02644684,88901.0,88889.0,0.05214401]
[1740537408147,0.02644684,88901.0,88889.0,0.01237243]
[1740537408285,0.3,88897.0,88888.0,0.0038482]
[1740537408473,0.3,88897.0,88888.0,0.0008482]
[1740537408704,0.3,88897.0,88889.0,0.01237243]
[1740537409425,0.3,88898.0,88889.0,0.18112143]
[1740537409621,0.3,88898.0,88889.0,0.05307915]
[1740537409853,0.168747,88890.0,88889.0,0.01237243]
[1740537410058,0.168749,88889.0,88888.0,0.0008482]
[1740537410765,0.17138263,88891.0,88888.0,0.0008482]
[1740537411068,0.168749,88889.0,88888.0,0.0018482]
[1740537411311,0.3,88901.0,88888.0,0.0008482]
[1740537411445,0.168749,88889.0,88888.0,0.0008482]
[1740537411649,0.168749,88889.0,88888.0,0.0048482]
[1740537411650,0.798049,88889.0,88888.0,0.0048482]
[1740537411994,0.798049,88889.0,88888.0,0.0008482]
[1740537412172,0.906993,88889.0,88888.0,0.0058482]
[1740537412491,0.906993,88889.0,88888.0,0.0028482]
[1740537412722,0.906993,88889.0,88888.0,0.0008482]
[1740537412916,0.906993,88889.0,88888.0,0.0038482]
[1740537413979,0.906993,88889.0,88888.0,0.0008482]
[1740537414391,0.916713,88889.0,88888.0,0.0018482]
[1740537414791,0.168797,88864.0,88863.0,0.07994176]
[1740537415029,0.168797,88864.0,88863.0,0.09322439]
[1740537415867,0.19552084,88864.0,88863.0,0.09322439]
[1740537416075,0.19652084,88864.0,88863.0,0.10022439]
[1740537417583,0.02872384,88864.0,88863.0,0.10422439]
[1740537417820,0.19752084,88864.0,88863.0,0.10422439]
[1740537419774,0.02872384,88864.0,88863.0,0.10422439]
[1740537420358,0.19752084,88864.0,88863.0,0.01142845]
[1740537421417,0.19552084,88864.0,88863.0,0.00042845]
[1740537421627,0.19552084,88864.0,88863.0,0.00742845]
[1740537421823,0.49552084,88864.0,88863.0,0.00742845]
[1740537422001,0.49552084,88864.0,88863.0,0.00442845]
[1740537422404,0.49552084,88864.0,88863.0,0.00742845]
[1740537423443,0.49552084,88864.0,88863.0,0.00342845]
[1740537423893,0.49552084,88864.0,88863.0,0.00142845]
[1740537424001,0.49552084,88864.0,88863.0,0.00042845]
[1740537424836,0.82482084,88864.0,88863.0,0.00342845]
[1740537425253,0.82482084,88864.0,88863.0,0.00042845]
[1740537426700,0.82482084,88864.0,88863.0,0.00142845]
[1740537427054,0.82482084,88864.0,88863.0,0.00242845]
[1740537427446,0.82482084,88864.0,88863.0,0.00142845]
[1740537427801,0.82482084,88864.0,88863.0,0.00127645]
[1740537428036,0.82482084,88864.0,88863.0,0.00627645]
[1740537429378,0.65602384,88864.0,88863.0,0.00627645]
[1740537429593,0.65602384,88864.0,88863.0,0.0195841]
[1740537429934,0.35602384,88864.0,88863.0,0.0195841]
[1740537430366,0.35602384,88864.0,88863.0,0.0175841]
[1740537430567,0.35602384,88864.0,88863.0,0.0205841]
[1740537430768,0.02772384,88864.0,88863.0,0.0205841]
[1740537431089,0.02872384,88864.0,88863.0,0.03622556]
[1740537432347,0.19752084,88864.0,88863.0,0.02291791]
[1740537432545,0.19752084,88864.0,88863.0,0.01127645]
[1740537436097,0.18417315,88866.0,88863.0,0.01127645]
[1740537436289,0.168797,88864.0,88863.0,0.01127645]
[1740537436813,0.19008946,88864.0,88863.0,0.01127645]
[1740537437297,0.02129246,88864.0,88863.0,0.01127645]
[1740537437650,0.168795,88865.0,88863.0,0.01127645]
[1740537438002,0.19029272,88865.0,88863.0,0.01027645]
[1740537438405,0.00148,88864.0,88863.0,0.01027645]
[1740537438550,0.00148,88864.0,88863.0,0.00527645]
[1740537438747,0.00148,88864.0,88863.0,0.01027645]
[1740537439252,0.00148,88864.0,88863.0,0.13557645]
[1740537439512,0.00148,88864.0,88863.0,0.34057768]
[1740537439719,0.00148,88864.0,88863.0,0.35421879]
[1740537440650,0.00148,88864.0,88863.0,0.36021879]
[1740537440975,0.00148,88864.0,88863.0,0.34821879]
[1740537441228,0.00248,88864.0,88863.0,0.36021879]
[1740537441655,0.00248,88864.0,88863.0,0.35521879]
[1740537442015,0.00248,88864.0,88863.0,0.36221879]
[1740537442961,0.00248,88864.0,88863.0,0.37675964]
[1740537444106,0.00248,88864.0,88863.0,0.39697436]
[1740537446289,0.3,88897.0,88864.0,0.0812]
[1740537446290,0.168738,88896.0,88864.0,0.0812]
[1740537446494,0.3,88897.0,88889.0,0.168748]
[1740537446693,0.3,88897.0,88886.0,0.0812]
[1740537446914,0.3,88897.0,88890.0,0.01156505]
[1740537447097,0.3,88897.0,88891.0,0.0317774]
[1740537447299,0.3,88897.0,88891.0,0.04333982]
[1740537448233,0.3,88897.0,88891.0,0.04348439]
[1740537448415,0.033838,88904.0,88892.0,0.224992]
[1740537448625,0.0792,88909.0,88892.0,0.224992]
[1740537448626,0.02180955,88897.0,88893.0,0.168741]
[1740537448851,0.468723,88903.0,88893.0,0.18029796]
[1740537449030,0.468723,88903.0,88894.0,0.21288065]
[1740537449185,0.3,88903.0,88895.0,0.168737]
[1740537449381,0.3,88903.0,88895.0,0.18028841]
[1740537449593,0.3,88903.0,88896.0,0.06663879]
[1740537449914,0.033835,88912.0,88896.0,0.07818757]
[1740537450094,0.168722,88904.0,88896.0,0.07818757]
[1740537450292,0.3,88904.0,88896.0,0.07818757]
[1740537450494,0.32301475,88904.0,88896.0,0.07818757]
[1740537450816,0.0004243,88903.0,88897.0,0.05070271]
[1740537451005,0.0004243,88903.0,88897.0,0.06224886]
[1740537451388,0.0004243,88903.0,88898.0,0.168732]
[1740537451599,0.2253903,88903.0,88898.0,0.01154352]
[1740537451799,0.0004243,88903.0,88896.0,0.001]
[1740537452024,0.1691483,88903.0,88897.0,0.001]
[1740537452194,0.1691483,88903.0,88898.0,0.01718866]
[1740537452397,0.1691483,88903.0,88898.0,0.02873218]
[1740537452579,0.0004243,88903.0,88898.0,0.02873218]
[1740537452783,0.0004243,88903.0,88898.0,0.18592066]
[1740537452998,0.0004243,88903.0,88899.0,0.0115409]
[1740537453207,0.0004243,88903.0,88900.0,0.01984696]
[1740537454436,0.3,88902.0,88900.0,0.001]
[1740537455071,0.3,88902.0,88900.0,0.002]
[1740537455521,0.0004243,88903.0,88901.0,0.01153566]
[1740537455642,0.0004243,88903.0,88902.0,0.168725]
[1740537455841,0.0004243,88903.0,88902.0,0.18025804]
[1740537456081,0.0004243,88903.0,88902.0,0.25144854]
[1740537456296,0.0004243,88903.0,88902.0,0.29974854]
[1740537457125,0.0004243,88903.0,88902.0,0.30074854]
[1740537457571,0.0004243,88903.0,88902.0,0.30174854]
[1740537457929,0.0004243,88903.0,88902.0,0.30074854]
[1740537458130,0.0004243,88903.0,88902.0,0.30674854]
[1740537458336,0.0004243,88903.0,88902.0,0.31374854]
[1740537460940,0.0004243,88903.0,88902.0,0.14502354]
[1740537461585,0.0004243,88903.0,88902.0,0.31374854]
[1740537463002,0.0004243,88903.0,88902.0,0.14502354]
[1740537463135,0.0004243,88903.0,88902.0,0.07383304]
[1740537464243,0.0004243,88903.0,88902.0,0.24255804]
[1740537464468,0.0004243,88903.0,88902.0,0.07383304]
[1740537465817,0.1691473,88903.0,88902.0,0.02553304]
[1740537466026,0.17111583,88903.0,88902.0,0.014]
[1740537466447,0.80041583,88903.0,88902.0,0.014]
[1740537466620,0.7984473,88903.0,88902.0,0.014]
[1740537466820,0.46873,88899.0,88898.0,0.000848]
[1740537469246,0.54733,88899.0,88898.0,0.000848]
[1740537470041,0.54733,88899.0,88898.0,0.003848]
[1740537470216,0.54733,88899.0,88898.0,0.006848]
[1740537470415,0.54733,88899.0,88898.0,0.003848]
[1740537470567,0.54733,88899.0,88898.0,0.000848]
[1740537472414,0.87663,88899.0,88898.0,0.000848]
[1740537477416,0.79803,88899.0,88898.0,0.000848]
[1740537480235,0.79803,88899.0,88898.0,0.001848]
[1740537480457,0.79803,88899.0,88898.0,0.002848]
[1740537480848,0.79803,88899.0,88898.0,0.001848]
[1740537481055,0.79803,88899.0,88898.0,0.004848]
[1740537481056,0.6293,88899.0,88898.0,0.004848]
[1740537481254,0.79803,88899.0,88898.0,0.004848]
[1740537481465,0.79803,88899.0,88898.0,0.001848]
[1740537481660,0.79803,88899.0,88898.0,0.002848]
[1740537482063,0.49803,88899.0,88898.0,0.001848]
[1740537482266,0.3293,88899.0,88898.0,0.084548]
[1740537482499,0.3293,88899.0,88898.0,0.10427623]
[1740537482702,0.3293,88899.0,88898.0,0.10327623]
[1740537482929,0.3293,88899.0,88898.0,0.10427623]
[1740537483135,0.3293,88899.0,88898.0,0.09501726]
[1740537483496,0.3293,88899.0,88898.0,0.09401726]
[1740537483701,0.3293,88899.0,88898.0,0.09301726]
[1740537484241,0.1691473,88903.0,88898.0,0.09201726]
[1740537484442,0.2253883,88903.0,88898.0,0.083548]
[1740537484644,0.16873,88899.0,88898.0,0.087548]
[1740537484844,0.168728,88900.0,88898.0,0.085548]
[1740537485208,0.16873,88899.0,88898.0,0.089548]
[1740537485410,0.16873,88899.0,88898.0,0.085548]
[1740537485845,0.16873,88899.0,88898.0,0.088548]
[1740537486058,0.16873,88899.0,88898.0,0.086548]
[1740537486254,0.16873,88899.0,88898.0,0.090548]
[1740537487160,0.16873,88899.0,88898.0,0.007848]
[1740537487561,0.1691541,88899.0,88898.0,0.004848]
[1740537487939,0.1691541,88899.0,88898.0,0.008848]
[1740537489349,0.0004241,88899.0,88898.0,0.008848]
[1740537489891,0.0004241,88899.0,88898.0,0.01810697]
[1740537490136,0.0004241,88899.0,88898.0,0.10740846]
[1740537490338,0.0004241,88899.0,88898.0,0.32234046]
[1740537491127,0.0004241,88899.0,88898.0,0.15360846]
[1740537491345,0.0004241,88899.0,88898.0,0.15497142]
[1740537492809,0.0004241,88899.0,88898.0,0.15360846]
[1740537494207,0.0004241,88899.0,88898.0,0.15339978]
[1740537496190,0.0004241,88899.0,88898.0,0.32213178]
[1740537496387,0.0004241,88899.0,88898.0,0.15339978]
[1740537496587,0.0004241,88899.0,88898.0,0.32349475]
[1740537496772,0.0004241,88899.0,88898.0,0.32213178]
[1740537496967,0.0004241,88899.0,88898.0,0.15339978]
[1740537497490,0.0004241,88899.0,88898.0,0.15476276]
[1740537497699,0.0004241,88899.0,88898.0,0.32349476]
[1740537497899,0.0004241,88899.0,88898.0,0.32213178]
[1740537498359,0.0004241,88899.0,88898.0,0.15339978]
[1740537498722,0.0004241,88899.0,88898.0,0.32213178]
[1740537498923,0.0004241,88899.0,88898.0,0.15339978]
[1740537499280,0.0004241,88899.0,88898.0,0.14539978]
[1740537499481,0.0004241,88899.0,88898.0,0.15639978]
[1740537503355,0.0004241,88899.0,88898.0,0.32649469]
[1740537503584,0.0004241,88899.0,88898.0,0.32513178]
[1740537506808,0.0004241,88899.0,88898.0,0.31413178]
[1740537506991,0.0004241,88899.0,88898.0,0.32113178]
[1740537507197,0.0004241,88899.0,88898.0,0.32813178]
[1740537507497,0.0004241,88899.0,88898.0,0.31413178]
[1740537507671,0.0004241,88899.0,88898.0,0.32113178]
[1740537508027,0.0004241,88899.0,88898.0,0.34135705]
[1740537508779,0.0004241,88899.0,88898.0,0.34835705]
[1740537518850,0.0004241,88899.0,88898.0,0.44835705]
[1740537519070,0.0004241,88899.0,88898.0,0.8879979]
[1740537519446,0.0004241,88899.0,88898.0,0.89152468]
[1740537519587,1e-07,88899.0,88898.0,0.89296767]
[1740537519991,1e-07,88899.0,88898.0,0.89996767]
[1740537520433,1e-07,88899.0,88898.0,0.96574125]
[1740537520689,0.0004243,88903.0,88902.0,0.494725]
[1740537520865,0.000424,88914.0,88913.0,0.2]
[1740537521095,0.000424,88914.0,88913.0,0.819804]
[1740537521394,0.000424,88914.0,88913.0,1.13434485]
[1740537521535,1e-06,88914.0,88913.0,0.95324485]
[1740537521735,1e-06,88914.0,88913.0,1.04120066]
[1740537522399,0.2252665,88952.0,88928.0,0.1]
[1740537522540,0.168647,88943.0,88931.0,0.168669]
[1740537522947,0.224857,88946.0,88931.0,0.168669]
[1740537523153,0.168646,88944.0,88930.0,0.00136108]
[1740537523379,0.3,88951.0,88931.0,0.03300611]
[1740537523606,0.224845,88950.0,88931.0,0.03315068]
[1740537523951,0.168668,88932.0,88931.0,0.03315068]
[1740537524154,0.168668,88932.0,88931.0,0.00614457]
[1740537524962,0.224874,88939.0,88931.0,0.00614457]
[1740537525115,0.168668,88932.0,88931.0,0.00614457]
[1740537525513,0.168668,88932.0,88931.0,0.00714457]
[1740537525834,0.168668,88932.0,88931.0,0.00314457]
[1740537526270,0.168664,88935.0,88931.0,0.00414457]
[1740537526385,0.168658,88937.0,88931.0,0.00414457]
[1740537526609,0.16866,88937.0,88932.0,0.01728216]
[1740537526850,0.3,88949.0,88932.0,0.02790032]
[1740537527083,0.168661,88936.0,88932.0,0.00136152]
[1740537527222,0.3,88941.0,88931.0,0.00514457]
[1740537527428,0.168658,88937.0,88932.0,0.00136152]
[1740537527746,0.168662,88935.0,88933.0,0.01061522]
[1740537527906,0.168664,88934.0,88933.0,0.01061522]
[1740537528105,0.168664,88934.0,88931.0,0.01114457]
[1740537528590,0.168664,88934.0,88931.0,0.00514457]
[1740537528753,0.168664,88934.0,88931.0,0.00014457]
[1740537529158,0.168664,88934.0,88931.0,0.00314457]
[1740537529361,0.168664,88934.0,88931.0,0.00014457]
[1740537529567,0.3,88939.0,88931.0,0.00014457]
[1740537529810,0.168667,88933.0,88931.0,0.01114457]
[1740537530223,0.3,88938.0,88931.0,0.01114457]
[1740537530636,0.168661,88936.0,88931.0,0.0238858]
[1740537530847,0.168659,88937.0,88932.0,0.01061854]
[1740537531056,0.3,88938.0,88932.0,0.17928654]
[1740537531207,0.3,88938.0,88932.0,0.168668]
[1740537531406,0.16866,88937.0,88933.0,0.0106156]
[1740537531640,0.168658,88937.0,88934.0,0.020754]
[1740537531838,0.168655,88939.0,88934.0,0.020754]
[1740537532041,0.3,88938.0,88934.0,0.020754]
[1740537532215,0.168662,88936.0,88934.0,0.020754]
[1740537532601,0.224878,88937.0,88934.0,0.020754]
[1740537532855,0.224878,88937.0,88933.0,0.005]
[1740537533155,0.168662,88936.0,88931.0,0.00014457]
[1740537533521,0.0004243,88953.0,88934.0,0.005]
[1740537533726,0.0004245,88952.0,88937.0,0.1258]
[1740537533920,0.3,88943.0,88938.0,0.01534435]
[1740537534346,0.468654,88939.0,88938.0,0.01534435]
[1740537534747,0.168662,88935.0,88934.0,0.005]
[1740537534923,0.3,88945.0,88931.0,0.00014457]
[1740537535291,0.3,88940.0,88932.0,0.00982772]
[1740537535560,0.3,88938.0,88933.0,0.02893834]
[1740537535835,0.468657,88938.0,88933.0,0.02893834]
[1740537536012,0.468657,88938.0,88937.0,0.004]
[1740537536354,0.468657,88938.0,88933.0,0.02893834]
[1740537536557,0.468657,88938.0,88934.0,0.04748037]
[1740537536782,0.468657,88938.0,88934.0,0.05730285]
[1740537536992,0.468653,88940.0,88934.0,0.05730285]
[1740537537191,0.168657,88938.0,88937.0,0.005]
[1740537537392,0.168657,88938.0,88933.0,0.007]
[1740537537600,0.168657,88938.0,88934.0,0.02239684]
[1740537537799,0.168657,88938.0,88934.0,0.0380095]
[1740537538015,0.168657,88938.0,88934.0,0.02739684]
[1740537538347,0.3,88940.0,88935.0,0.01060973]
[1740537538548,0.3,88939.0,88935.0,0.01060973]
[1740537538711,0.3,88939.0,88936.0,0.02619719]
[1740537538910,0.468655,88939.0,88936.0,0.02619719]
[1740537539413,0.3,88939.0,88937.0,0.005]
[1740537539613,0.3,88941.0,88937.0,0.005]
[1740537540235,0.468656,88938.0,88937.0,0.005]
[1740537540764,0.16866,88936.0,88935.0,0.006]
[1740537541118,0.168668,88932.0,88931.0,0.00099237]
[1740537541319,0.168668,88932.0,88931.0,0.03616251]
[1740537541519,0.168668,88932.0,88931.0,0.00099237]
[1740537541842,0.19518638,88932.0,88931.0,0.00099237]
[1740537542716,0.3,88938.0,88931.0,0.00799237]
[1740537542915,0.168668,88932.0,88931.0,0.00799237]
[1740537543120,0.168668,88932.0,88931.0,0.02137161]